[Event "Caplin Hastings Masters 2023-24"]
[Site "Hastings"]
[Date "2023.12.28"]
[Round "1.32"]
[White "Blades, Kit"]
[Black "Nielsen, Andre"]
[Result "0-1"]
[ECO "C47"]
[WhiteElo "1771"]
[BlackElo "2239"]
[Annotator "ChessBase"]
[PlyCount "112"]
[EventDate "2023.12.18"]
[EventType "swiss"]
[EventCountry "ENG"]
[SourceTitle "playchess.com"]
[Source "ChessBase"]
[SourceQuality "1"]
[TimeControl "40/6000+30:3000+30"]

1. e4 {[%emt 0:00:04]} e5 {[%emt 0:00:09]} 2. Nf3 {[%emt 0:00:06]} Nc6 {[%emt 0:00:12]} 3. d4 {[%emt 0:00:07]} exd4 {[%emt 0:00:38]} 4. Nxd4 {[%emt 0:00:16]} Nf6 {[%emt 0:00:43]} 5. Nc3 {[%emt 0:00:05]} Bb4 {[%emt 0:02:11]} 6. Nxc6 {[%emt 0:00:25]} bxc6 {[%emt 0:00:08]} 7. Bd3 {[%emt 0:00:12]} d5 {[%emt 0:00:23]} 8. exd5 {[%emt 0:00:18]} cxd5 {[%emt 0:00:14]} 9. O-O {[%emt 0:00:26]} O-O {[%emt 0:00:30]} 10. Bg5 {[%emt 0:00:12]} c6 {[%emt 0:00:13]} 11. Qf3 {[%emt 0:00:09]} h6 {[%emt 0:02:15]} 12. Bxf6 {[%emt 0:00:09]} Qxf6 {[%emt 0:00:08]} 13. Qxf6 {[%emt 0:00:05]} gxf6 {[%emt 0:00:09]} 14. Ne2 {[%emt 0:02:19]} Rb8 {[%emt 0:01:39]} 15. Rab1 {[%emt 0:06:44]} Re8 {[%emt 0:02:12]} 16. Nd4 {[%emt 0:03:59]} Rb6 {[%emt 0:05:15]} 17. Nf5 {[%emt 0:09:50]} Bf8 {[%emt 0:22:37]} 18. b3 {[%emt 0:12:22]} Re5 {[%emt 0:26:34]} 19. g4 {[%emt 0:16:15]} Rb4 {[%emt 0:02:50]} 20. f4 {[%emt 0:03:03]} Re8 {[%emt 0:05:06]} 21. c3 {[%emt 0:09:32]} Rb8 {[%emt 0:01:41]} 22. Rbe1 {[%emt 0:03:38]} Bd7 {[%emt 0:02:45]} 23. Kf2 {[%emt 0:07:55]} a5 {[%emt 0:02:11]} 24. Rxe8 {[%emt 0:01:22]} Rxe8 {[%emt 0:09:24]} 25. Re1 {[%emt 0:02:33]} Re6 {[%emt 0:04:53]} 26. Ne3 {[%emt 0:05:33]} Bd6 {[%emt 0:10:16]} 27. Bf5 {[%emt 0:03:40]} Bxf4 {[%emt 0:00:53]} 28. Bxe6 {[%emt 0:01:00]} fxe6 {[%emt 0:00:07]} 29. h3 {[%emt 0:02:38]} c5 {[%emt 0:00:33]} 30. a3 {[%emt 0:08:47]} Bd6 {[%emt 0:01:23]} 31. Rd1 {[%emt 0:00:26]} Kf7 {[%emt 0:00:55]} 32. Nc2 {[%emt 0:01:00]} Bc6 {[%emt 0:02:03]} 33. b4 {[%emt 0:00:07]} Ba4 {[%emt 0:00:47]} 34. Rd2 {[%emt 0:01:50]} axb4 {[%emt 0:01:07]} 35. axb4 {[%emt 0:00:20]} Bxc2 {[%emt 0:01:43]} 36. Rxc2 {[%emt 0:00:13]} cxb4 {[%emt 0:00:07]} 37. cxb4 {[%emt 0:01:05]} Bxb4 {[%emt 0:00:06]} 38. Rc8 {[%emt 0:00:47]} Bd2 {[%emt 0:01:59]} 39. Ke2 {[%emt 0:02:48]} Bg5 {[%emt 0:00:39]} 40. Rc7+ {[%emt 0:00:29]} Kg6 {[%emt 0:00:29]} 41. Re7 {[%emt 0:53:10]} e5 {[%emt 0:02:38]} 42. Kd3 {[%emt 0:00:00]} Bf4 {[%emt 0:05:35]} 43. Rd7 {[%emt 0:00:00]} d4 {[%emt 0:01:20]} 44. Ke4 {[%emt 0:00:00]} Kg5 {[%emt 0:02:31]} 45. Rd6 {[%emt 0:00:00]} Kh4 {[%emt 0:07:35]} 46. Rxf6 {[%emt 0:00:00]} Kxh3 {[%emt 0:00:23]} 47. Kf3 {[%emt 0:00:00]} d3 {[%emt 0:04:05]} 48. Rf5 {[%emt 0:00:00]} Kh2 {[%emt 0:05:49]} 49. Kf2 {[%emt 0:00:00]} Bg3+ {[%emt 0:00:41]} 50. Kf1 {[%emt 0:00:00]} Kh3 {[%emt 0:07:13]} 51. g5 {[%emt 0:00:00]} hxg5 {[%emt 0:00:16]} 52. Rxg5 {[%emt 0:00:00]} e4 {[%emt 0:04:31]} 53. Rg8 {[%emt 0:00:00]} e3 {[%emt 0:01:45]} 54. Rh8+ {[%emt 0:00:00]} Bh4 {[%emt 0:00:55]} 55. Re8 {[%emt 0:00:10]} Bg5 {[%emt 0:00:15]} 56. Kg1 {[%emt 0:01:28]} d2 {[%emt 0:00:37]} 0-1

[Event "Caplin Hastings Masters 2023-24"]
[Site "Hastings"]
[Date "2023.12.28"]
[Round "1.33"]
[White "Beaumont, Chris R"]
[Black "Wilson, Matthew R"]
[Result "1-0"]
[ECO "E08"]
[WhiteElo "2236"]
[BlackElo "1771"]
[Annotator "ChessBase"]
[PlyCount "45"]
[EventDate "2023.12.18"]
[EventType "swiss"]
[EventCountry "ENG"]
[SourceTitle "playchess.com"]
[Source "ChessBase"]
[SourceQuality "1"]
[TimeControl "40/6000+30:3000+30"]

1. Nf3 {[%emt 0:00:14]} d5 {[%emt 0:00:12]} 2. d4 {[%emt 0:00:00]} Nf6 {[%emt 0:00:16]} 3. c4 {[%emt 0:00:07]} e6 {[%emt 0:00:07]} 4. g3 {[%emt 0:00:07]} Bb4+ {[%emt 0:00:25]} 5. Bd2 {[%emt 0:00:11]} Be7 {[%emt 0:00:24]} 6. Qc2 {[%emt 0:00:25]} Ne4 {[%emt 0:03:17]} 7. Bg2 {[%emt 0:01:50]} O-O {[%emt 0:00:46]} 8. O-O {[%emt 0:00:08]} Nd7 {[%emt 0:00:48]} 9. Bf4 {[%emt 0:01:22]} c6 {[%emt 0:01:05]} 10. Nc3 {[%emt 0:03:36]} f5 {[%emt 0:08:36]} 11. Rad1 {[%emt 0:07:18]} g5 {[%emt 0:05:12]} 12. Bc1 {[%emt 0:00:29]} Kh8 {[%emt 0:06:19]} 13. b3 {[%emt 0:06:42]} Qe8 {[%emt 0:06:24]} 14. Nxe4 {[%emt 0:02:01]} dxe4 {[%emt 0:00:46]} 15. Nxg5 {[%emt 0:00:16]} Qg6 {[%emt 0:00:51]} 16. Nh3 {[%emt 0:00:52]} Bf6 {[%emt 0:03:39]} 17. Nf4 {[%emt 0:03:12]} Qf7 {[%emt 0:00:27]} 18. f3 {[%emt 0:02:34]} Bxd4+ {[%emt 0:09:30]} 19. Rxd4 {[%emt 0:05:08]} e5 {[%emt 0:00:42]} 20. Rdd1 {[%emt 0:00:31]} exf4 {[%emt 0:00:31]} 21. Bxf4 {[%emt 0:00:53]} exf3 {[%emt 0:02:49]} 22. Bxf3 {[%emt 0:00:26]} Qg7 {[%emt 0:02:36]} 23. e4 {[%emt 0:07:28]} 1-0

[Event "Caplin Hastings Masters 2023-24"]
[Site "Hastings"]
[Date "2023.12.28"]
[Round "1.34"]
[White "Park, Inchan"]
[Black "Boswell, Jacob Connor"]
[Result "0-1"]
[ECO "A81"]
[WhiteElo "1768"]
[BlackElo "2235"]
[Annotator "ChessBase"]
[PlyCount "94"]
[EventDate "2023.12.18"]
[EventType "swiss"]
[EventCountry "ENG"]
[SourceTitle "playchess.com"]
[Source "ChessBase"]
[SourceQuality "1"]
[TimeControl "40/6000+30:3000+30"]

1. d4 {[%emt 0:00:01]} f5 {[%emt 0:01:02]} 2. Nf3 {[%emt 0:00:10]} Nf6 {[%emt 0:00:07]} 3. g3 {[%emt 0:00:04]} g6 {[%emt 0:00:09]} 4. Bg2 {[%emt 0:00:11]} Bg7 {[%emt 0:00:08]} 5. O-O {[%emt 0:00:15]} O-O {[%emt 0:00:08]} 6. b3 {[%emt 0:00:58]} d6 {[%emt 0:02:17]} 7. Bb2 {[%emt 0:00:29]} Qe8 {[%emt 0:06:25]} 8. d5 {[%emt 0:06:16]} e5 {[%emt 0:06:48]} 9. dxe6 {[%emt 0:03:34]} Nc6 {[%emt 0:02:04]} 10. c4 {[%emt 0:13:27]} Bxe6 {[%emt 0:06:37]} 11. Nc3 {[%emt 0:01:57]} Rd8 {[%emt 0:07:48]} 12. Ng5 {[%emt 0:53:07]} Bc8 {[%emt 0:05:36]} 13. Nd5 {[%emt 0:00:53]} Nxd5 {[%emt 0:01:40]} 14. Bxd5+ {[%emt 0:00:08]} Kh8 {[%emt 0:00:13]} 15. Qd2 {[%emt 0:01:56]} Ne5 {[%emt 0:06:15]} 16. h4 {[%emt 0:07:17]} Qe7 {[%emt 0:03:07]} 17. Nh3 {[%emt 0:10:00]} Bf6 {[%emt 0:18:50]} 18. Ng5 {[%emt 0:06:46]} Rde8 {[%emt 0:02:05]} 19. Rfe1 {[%emt 0:00:31]} Qg7 {[%emt 0:01:21]} 20. Rab1 {[%emt 0:00:15]} Re7 {[%emt 0:06:52]} 21. e3 {[%emt 0:00:35]} Rfe8 {[%emt 0:04:15]} 22. Bg2 {[%emt 0:00:26]} h6 {[%emt 0:03:28]} 23. Nh3 {[%emt 0:00:12]} g5 {[%emt 0:00:44]} 24. hxg5 {[%emt 0:00:31]} hxg5 {[%emt 0:00:05]} 25. f4 {[%emt 0:00:54]} gxf4 {[%emt 0:07:42]} 26. exf4 {[%emt 0:00:01]} Nf3+ {[%emt 0:01:26]} 27. Bxf3 {[%emt 0:00:47]} Qxg3+ {[%emt 0:00:03]} 28. Kf1 {[%emt 0:00:12]} Rxe1+ {[%emt 0:01:11]} 29. Rxe1 {[%emt 0:00:06]} Rxe1+ {[%emt 0:00:06]} 30. Qxe1 {[%emt 0:00:03]} Qxe1+ {[%emt 0:00:26]} 31. Kxe1 {[%emt 0:00:04]} Bxb2 {[%emt 0:00:02]} 32. Kd2 {[%emt 0:00:33]} Bd4 {[%emt 0:07:08]} 33. Ng5 {[%emt 0:01:22]} Bf6 {[%emt 0:01:48]} 34. Ke3 {[%emt 0:02:07]} Kg7 {[%emt 0:00:39]} 35. Nh3 {[%emt 0:00:15]} Bb2 {[%emt 0:02:08]} 36. Bg2 {[%emt 0:01:27]} Bc1+ {[%emt 0:00:58]} 37. Kf3 {[%emt 0:00:35]} Bd7 {[%emt 0:00:43]} 38. Kg3 {[%emt 0:00:05]} b5 {[%emt 0:02:32]} 39. cxb5 {[%emt 0:00:42]} Bxb5 {[%emt 0:00:01]} 40. Nf2 {[%emt 0:00:12]} Bd2 {[%emt 0:02:35]} 41. a4 {[%emt 0:02:04]} Be2 {[%emt 0:01:26]} 42. Bd5 {[%emt 0:00:08]} Kf6 {[%emt 0:02:36]} 43. Bf3 {[%emt 0:07:29]} Ba6 {[%emt 0:10:53]} 44. Nd1 {[%emt 0:00:24]} Bd3 {[%emt 0:01:30]} 45. Bd5 {[%emt 0:01:44]} Bc2 {[%emt 0:01:17]} 46. Nf2 {[%emt 0:00:12]} Ke7 {[%emt 0:01:13]} 47. Bc4 {[%emt 0:00:17]} c6 {[%emt 0:09:11]} 0-1

[Event "Caplin Hastings Masters 2023-24"]
[Site "Hastings"]
[Date "2023.12.28"]
[Round "1.35"]
[White "Villiers, Thomas"]
[Black "Metcalfe, Charlie P"]
[Result "1-0"]
[ECO "C10"]
[WhiteElo "2230"]
[BlackElo "1760"]
[Annotator "ChessBase"]
[PlyCount "191"]
[EventDate "2023.12.18"]
[EventType "swiss"]
[EventCountry "ENG"]
[SourceTitle "playchess.com"]
[Source "ChessBase"]
[SourceQuality "1"]
[TimeControl "40/6000+30:3000+30"]

1. e4 {[%emt 0:00:03]} e6 {[%emt 0:00:10]} 2. d4 {[%emt 0:00:07]} d5 {[%emt 0:00:01]} 3. Nc3 {[%emt 0:00:12]} dxe4 {[%emt 0:00:02]} 4. Nxe4 {[%emt 0:00:08]} Nd7 {[%emt 0:00:02]} 5. Nf3 {[%emt 0:00:14]} Ngf6 {[%emt 0:00:02]} 6. Nxf6+ {[%emt 0:00:10]} Nxf6 {[%emt 0:00:03]} 7. Bd3 {[%emt 0:00:16]} c5 {[%emt 0:00:55]} 8. Be3 {[%emt 0:00:32]} Qc7 {[%emt 0:03:10]} 9. Qe2 {[%emt 0:02:12]} Be7 {[%emt 0:05:10]} 10. O-O-O {[%emt 0:01:59]} O-O {[%emt 0:01:46]} 11. Kb1 {[%emt 0:04:12]} a6 {[%emt 0:04:09]} 12. dxc5 {[%emt 0:00:31]} Bxc5 {[%emt 0:00:19]} 13. Bxc5 {[%emt 0:04:23]} Qxc5 {[%emt 0:00:03]} 14. Ne5 {[%emt 0:00:09]} b5 {[%emt 0:06:25]} 15. g4 {[%emt 0:01:01]} Bb7 {[%emt 0:04:22]} 16. g5 {[%emt 0:00:59]} Nd5 {[%emt 0:11:47]} 17. Nd7 {[%emt 0:03:58]} Qb4 {[%emt 0:03:00]} 18. Bxh7+ {[%emt 0:14:56]} Kxh7 {[%emt 0:00:54]} 19. Qh5+ {[%emt 0:00:05]} Kg8 {[%emt 0:00:03]} 20. Nf6+ {[%emt 0:00:32]} Nxf6 {[%emt 0:08:24]} 21. gxf6 {[%emt 0:00:05]} Be4 {[%emt 0:24:22]} 22. fxg7 {[%emt 0:04:53]} Bxc2+ {[%emt 0:00:17]} 23. Ka1 {[%emt 0:03:28]} Kxg7 {[%emt 0:00:08]} 24. Qe5+ {[%emt 0:00:28]} Kg8 {[%emt 0:23:50]} 25. Rhg1+ {[%emt 0:03:12]} Bg6 {[%emt 0:00:03]} 26. Rd7 {[%emt 0:00:08]} Kh7 {[%emt 0:02:27]} 27. Rd4 {[%emt 0:09:56]} Qe7 {[%emt 0:00:30]} 28. Rg3 {[%emt 0:00:07]} Kg8 {[%emt 0:03:10]} 29. Rdg4 {[%emt 0:00:50]} Rac8 {[%emt 0:04:14]} 30. Rxg6+ {[%emt 0:00:58]} fxg6 {[%emt 0:00:01]} 31. Rxg6+ {[%emt 0:00:08]} Kf7 {[%emt 0:00:10]} 32. Rg7+ {[%emt 0:00:10]} Ke8 {[%emt 0:00:08]} 33. Rxe7+ {[%emt 0:00:15]} Kxe7 {[%emt 0:00:01]} 34. Qg5+ {[%emt 0:00:22]} Kd7 {[%emt 0:02:17]} 35. Qg7+ {[%emt 0:00:08]} Kc6 {[%emt 0:00:43]} 36. Qe5 {[%emt 0:00:32]} Kd7 {[%emt 0:01:33]} 37. Kb1 {[%emt 0:00:18]} Rf5 {[%emt 0:01:44]} 38. Qg7+ {[%emt 0:00:27]} Kd6 {[%emt 0:01:27]} 39. h4 {[%emt 0:00:41]} Rcc5 {[%emt 0:01:23]} 40. a3 {[%emt 0:00:48]} Rfd5 {[%emt 0:00:40]} 41. Qf8+ {[%emt 0:53:05]} Kd7 {[%emt 0:02:18]} 42. Qf7+ {[%emt 0:00:00]} Kd6 {[%emt 0:00:16]} 43. Qe8 {[%emt 0:00:00]} Re5 {[%emt 0:10:46]} 44. Qd8+ {[%emt 0:00:00]} Kc6 {[%emt 0:00:04]} 45. Qc8+ {[%emt 0:00:00]} Kb6 {[%emt 0:02:39]} 46. Qb8+ {[%emt 0:00:00]} Kc6 {[%emt 0:00:16]} 47. Qa7 {[%emt 0:00:00]} Kd5 {[%emt 0:03:27]} 48. Qxa6 {[%emt 0:00:00]} Ke4 {[%emt 0:07:59]} 49. Qd6 {[%emt 0:00:00]} Kf3 {[%emt 0:02:31]} 50. h5 {[%emt 0:00:00]} Rxh5 {[%emt 0:13:44]} 51. Qxe6 {[%emt 0:00:00]} Kxf2 {[%emt 0:00:09]} 52. Ka2 {[%emt 0:00:00]} Rhe5 {[%emt 0:00:57]} 53. Qh3 {[%emt 0:00:00]} Ke2 {[%emt 0:00:36]} 54. Qb3 {[%emt 0:00:00]} Rc4 {[%emt 0:05:15]} 55. Qh3 {[%emt 0:00:00]} Rcc5 {[%emt 0:01:58]} 56. Qg3 {[%emt 0:00:00]} Kd2 {[%emt 0:01:06]} 57. Qf2+ {[%emt 0:00:00]} Kd3 {[%emt 0:00:31]} 58. Kb3 {[%emt 0:00:00]} Rc4 {[%emt 0:01:49]} 59. Qf3+ {[%emt 0:00:00]} Kd4 {[%emt 0:00:19]} 60. Qf4+ {[%emt 0:00:00]} Kd5 {[%emt 0:00:26]} 61. Qf7+ {[%emt 0:00:00]} Kd4 {[%emt 0:00:45]} 62. Qa7+ {[%emt 0:00:00]} Ke4 {[%emt 0:01:01]} 63. Ka2 {[%emt 0:00:00]} Rd5 {[%emt 0:00:34]} 64. Qb7 {[%emt 0:00:00]} Kd4 {[%emt 0:00:55]} 65. b3 {[%emt 0:00:00]} Rc2+ {[%emt 0:01:53]} 66. Kb1 {[%emt 0:00:00]} Rdc5 {[%emt 0:00:42]} 67. Qg7+ {[%emt 0:00:00]} Ke3 {[%emt 0:00:34]} 68. Qg3+ {[%emt 0:00:00]} Kd2 {[%emt 0:00:29]} 69. Qf4+ {[%emt 0:00:00]} Kd3 {[%emt 0:00:20]} 70. Qd6+ {[%emt 0:00:00]} Ke2 {[%emt 0:00:18]} 71. Qe6+ {[%emt 0:00:00]} Kd2 {[%emt 0:00:19]} 72. Qh6+ {[%emt 0:00:00]} Kd1 {[%emt 0:00:24]} 73. Qh1+ {[%emt 0:00:00]} Kd2 {[%emt 0:00:08]} 74. Qg2+ {[%emt 0:00:00]} Kd1 {[%emt 0:00:57]} 75. Qg1+ {[%emt 0:00:00]} Kd2 {[%emt 0:00:45]} 76. Qd4+ {[%emt 0:00:00]} Ke2 {[%emt 0:00:15]} 77. b4 {[%emt 0:00:00]} Rc1+ {[%emt 0:00:57]} 78. Kb2 {[%emt 0:00:00]} R1c2+ {[%emt 0:00:39]} 79. Kb3 {[%emt 0:00:00]} R5c4 {[%emt 0:00:12]} 80. Qe5+ {[%emt 0:00:00]} Kd3 {[%emt 0:00:40]} 81. Qxb5 {[%emt 0:00:00]} R2c3+ {[%emt 0:00:14]} 82. Ka4 {[%emt 0:00:00]} Kc2 {[%emt 0:00:17]} 83. Qe5 {[%emt 0:00:00]} Kb1 {[%emt 0:00:56]} 84. Kb5 {[%emt 0:00:00]} Rc7 {[%emt 0:00:39]} 85. Qe4+ {[%emt 0:00:00]} Ka2 {[%emt 0:00:15]} 86. a4 {[%emt 0:00:00]} Ka3 {[%emt 0:00:36]} 87. a5 {[%emt 0:00:00]} Rc8 {[%emt 0:00:38]} 88. a6 {[%emt 0:00:00]} Rb8+ {[%emt 0:00:28]} 89. Ka5 {[%emt 0:00:00]} Rh3 {[%emt 0:00:38]} 90. b5 {[%emt 0:00:38]} Rb3 {[%emt 0:00:13]} 91. Qa4+ {[%emt 0:00:00]} Kb2 {[%emt 0:00:04]} 92. a7 {[%emt 0:00:00]} Rg8 {[%emt 0:00:49]} 93. b6 {[%emt 0:00:00]} Rg5+ {[%emt 0:00:40]} 94. Ka6 {[%emt 0:00:00]} Ra3 {[%emt 0:00:39]} 95. Qxa3+ {[%emt 0:00:00]} Kxa3 {[%emt 0:00:01]} 96. a8=Q {[%emt 0:00:00]} 1-0

[Event "Caplin Hastings Masters 2023-24"]
[Site "Hastings"]
[Date "2023.12.28"]
[Round "1.37"]
[White "Juknis, Paulius"]
[Black "Alcindor, Samuel"]
[Result "1-0"]
[ECO "B07"]
[WhiteElo "2148"]
[BlackElo "1714"]
[Annotator "NA"]
[PlyCount "71"]
[EventDate "2023.12.18"]
[EventType "swiss"]
[EventCountry "ENG"]
[SourceTitle "playchess.com"]
[Source "ChessBase"]
[SourceQuality "1"]
[TimeControl "40/6000+30:3000+30"]

1. e4 {[%emt 0:00:10]} d6 {[%emt 0:00:08]} 2. Nc3 {[%emt 0:01:20]} Nf6 {[%emt 0:00:58]} 3. d4 {[%emt 0:01:47]} g6 {[%emt 0:00:30]} 4. Bf4 {[%emt 0:01:19]} c6 {[%emt 0:01:49]} 5. Qd2 {[%emt 0:01:06]} b5 {[%emt 0:01:14]} 6. e5 {[%emt 0:00:09]} dxe5 {[%emt 0:04:16]} 7. dxe5 {[%emt 0:00:12]} Qxd2+ {[%emt 0:00:40]} 8. Bxd2 {[%emt 0:00:10]} Ng4 {[%emt 0:00:58]} 9. f4 {[%emt 0:00:28]} Bg7 {[%emt 0:01:40]} 10. h3 {[%emt 0:00:40]} Nh6 {[%emt 0:00:15]} 11. g4 {[%emt 0:00:25]} a5 {[%emt 0:19:47]} 12. Bg2 {[%emt 0:05:07]} Ra6 {[%emt 0:00:20]} 13. Ne4 {[%emt 0:08:29]} Nd7 {[%emt 0:03:04]} 14. Ne2 {[%emt 0:08:57]} O-O {[%emt 0:08:48]} 15. Nd4 {[%emt 0:05:55]} f5 {[%emt 0:12:15]} 16. Ng5 {[%emt 0:12:26]} Bb7 {[%emt 0:06:38]} 17. Nge6 {[%emt 0:04:08]} Rb8 {[%emt 0:01:45]} 18. g5 {[%emt 0:00:52]} c5 {[%emt 0:04:46]} 19. Bxb7 {[%emt 0:00:13]} Rxb7 {[%emt 0:00:36]} 20. gxh6 {[%emt 0:00:24]} Bxh6 {[%emt 0:02:23]} 21. Nxf5 {[%emt 0:04:33]} Bxf4 {[%emt 0:05:15]} 22. Nxe7+ {[%emt 0:02:23]} Kf7 {[%emt 0:02:44]} 23. Nd8+ {[%emt 0:03:05]} Kxe7 {[%emt 0:00:08]} 24. Nxb7 {[%emt 0:00:03]} Bxe5 {[%emt 0:00:22]} 25. Nxa5 {[%emt 0:00:15]} c4 {[%emt 0:01:52]} 26. Bb4+ {[%emt 0:01:25]} Ke6 {[%emt 0:04:13]} 27. O-O-O {[%emt 0:00:38]} Nf6 {[%emt 0:02:59]} 28. Rhe1 {[%emt 0:01:52]} Kf5 {[%emt 0:02:29]} 29. Kb1 {[%emt 0:00:44]} Bg3 {[%emt 0:01:59]} 30. Rf1+ {[%emt 0:00:32]} Kg5 {[%emt 0:00:35]} 31. Be7 {[%emt 0:00:44]} Rxa5 {[%emt 0:01:09]} 32. Bxf6+ {[%emt 0:00:06]} Kh6 {[%emt 0:00:21]} 33. Rd5 {[%emt 0:02:14]} Ra7 {[%emt 0:01:20]} 34. Rxb5 {[%emt 0:00:16]} Rf7 {[%emt 0:00:20]} 35. Bg5+ {[%emt 0:00:09]} Kg7 {[%emt 0:00:09]} 36. Bh6+ {[%emt 0:00:13]} 1-0

[Event "Caplin Hastings Masters 2023-24"]
[Site "Hastings"]
[Date "2023.12.28"]
[Round "1.38"]
[White "Han, Qixiang"]
[Black "Hobson, Kenneth"]
[Result "1-0"]
[ECO "E11"]
[WhiteElo "1711"]
[BlackElo "2130"]
[Annotator "ChessBase"]
[PlyCount "145"]
[EventDate "2023.12.18"]
[EventType "swiss"]
[EventCountry "ENG"]
[SourceTitle "playchess.com"]
[Source "ChessBase"]
[SourceQuality "1"]
[TimeControl "40/6000+30:3000+30"]

1. d4 {[%emt 0:00:01]} Nf6 {[%emt 0:00:59]} 2. c4 {[%emt 0:00:07]} e6 {[%emt 0:01:23]} 3. g3 {[%emt 0:00:11]} d5 {[%emt 0:01:26]} 4. Bg2 {[%emt 0:00:13]} Bb4+ {[%emt 0:02:01]} 5. Bd2 {[%emt 0:00:40]} Be7 {[%emt 0:00:25]} 6. Nf3 {[%emt 0:00:35]} O-O {[%emt 0:00:29]} 7. O-O {[%emt 0:01:22]} c6 {[%emt 0:00:14]} 8. Nc3 {[%emt 0:00:51]} a5 {[%emt 0:02:10]} 9. Bf4 {[%emt 0:01:52]} Nbd7 {[%emt 0:03:36]} 10. Qd3 {[%emt 0:01:39]} b6 {[%emt 0:01:56]} 11. e4 {[%emt 0:01:08]} dxc4 {[%emt 0:07:20]} 12. Qxc4 {[%emt 0:01:22]} Ba6 {[%emt 0:00:20]} 13. Qxc6 {[%emt 0:01:26]} Rc8 {[%emt 0:00:32]} 14. Qa4 {[%emt 0:00:22]} Bxf1 {[%emt 0:01:22]} 15. Rxf1 {[%emt 0:00:22]} Bb4 {[%emt 0:06:43]} 16. e5 {[%emt 0:04:57]} Bxc3 {[%emt 0:05:04]} 17. exf6 {[%emt 0:00:47]} Bxb2 {[%emt 0:00:50]} 18. fxg7 {[%emt 0:00:09]} Re8 {[%emt 0:04:53]} 19. Ng5 {[%emt 0:07:54]} Nf6 {[%emt 0:02:42]} 20. Bb7 {[%emt 0:11:41]} Qxd4 {[%emt 0:05:14]} 21. Qxd4 {[%emt 0:02:34]} Bxd4 {[%emt 0:00:06]} 22. Bxc8 {[%emt 0:00:11]} Rxc8 {[%emt 0:00:07]} 23. Nf3 {[%emt 0:00:29]} Bc3 {[%emt 0:02:20]} 24. Rc1 {[%emt 0:02:35]} Nd5 {[%emt 0:03:45]} 25. Be5 {[%emt 0:01:34]} f6 {[%emt 0:03:14]} 26. Bd6 {[%emt 0:04:46]} Kxg7 {[%emt 0:07:38]} 27. Nd4 {[%emt 0:02:05]} Kf7 {[%emt 0:02:00]} 28. Nb5 {[%emt 0:00:59]} Rc6 {[%emt 0:04:45]} 29. Ba3 {[%emt 0:01:40]} a4 {[%emt 0:15:12]} 30. Bb2 {[%emt 0:01:08]} Bxb2 {[%emt 0:01:54]} 31. Rxc6 {[%emt 0:00:08]} a3 {[%emt 0:00:34]} 32. Rc4 {[%emt 0:04:27]} e5 {[%emt 0:02:59]} 33. Ra4 {[%emt 0:00:43]} Kg6 {[%emt 0:05:50]} 34. Nxa3 {[%emt 0:01:15]} Nc3 {[%emt 0:03:04]} 35. Ra6 {[%emt 0:00:22]} Nd5 {[%emt 0:03:01]} 36. Nc4 {[%emt 0:00:51]} Bd4 {[%emt 0:00:07]} 37. Ra8 {[%emt 0:00:31]} Bc5 {[%emt 0:03:20]} 38. Kg2 {[%emt 0:02:33]} Nb4 {[%emt 0:00:55]} 39. Nd2 {[%emt 0:02:31]} Nd3 {[%emt 0:02:00]} 40. Ne4 {[%emt 0:01:15]} Bd4 {[%emt 0:00:57]} 41. Ra3 {[%emt 0:59:11]} Nb4 {[%emt 0:51:34]} 42. Kf1 {[%emt 0:03:15]} Kf5 {[%emt 0:02:48]} 43. Nd2 {[%emt 0:01:36]} Nd5 {[%emt 0:02:31]} 44. Ra7 {[%emt 0:01:13]} h6 {[%emt 0:02:57]} 45. Nb3 {[%emt 0:00:00]} Bb2 {[%emt 0:00:00]} 46. Ke2 {[%emt 0:00:00]} b5 {[%emt 0:00:00]} 47. Kd1 {[%emt 0:00:00]} b4 {[%emt 0:00:00]} 48. Kc2 {[%emt 0:00:00]} Bc3 {[%emt 0:00:00]} 49. Kd3 {[%emt 0:00:00]} Be1 {[%emt 0:00:00]} 50. f3 {[%emt 0:00:00]} h5 {[%emt 0:00:00]} 51. Ra5 {[%emt 0:00:00]} Nc7 {[%emt 0:00:00]} 52. Kc4 {[%emt 0:00:00]} Ne6 {[%emt 0:00:00]} 53. Rb5 {[%emt 0:00:00]} Kg6 {[%emt 0:00:00]} 54. Rd5 {[%emt 0:00:00]} Ng5 {[%emt 0:00:00]} 55. Rd3 {[%emt 0:00:00]} Nf7 {[%emt 0:00:00]} 56. Rd1 {[%emt 0:00:00]} Bf2 {[%emt 0:00:00]} 57. Kxb4 {[%emt 0:00:00]} f5 {[%emt 0:00:00]} 58. Nc5 {[%emt 0:00:00]} Ng5 {[%emt 0:00:00]} 59. f4 {[%emt 0:00:00]} Ne4 {[%emt 0:00:00]} 60. Nd3 {[%emt 0:00:00]} exf4 {[%emt 0:00:00]} 61. Nxf4+ {[%emt 0:00:00]} Kh6 {[%emt 0:00:00]} 62. a4 {[%emt 0:00:00]} h4 {[%emt 0:00:00]} 63. gxh4 {[%emt 0:00:00]} Bxh4 {[%emt 0:00:00]} 64. a5 {[%emt 0:00:00]} Be7+ {[%emt 0:00:00]} 65. Kc4 {[%emt 0:00:00]} Bd6 {[%emt 0:00:00]} 66. a6 {[%emt 0:00:00]} Bb8 {[%emt 0:00:00]} 67. Ne6 {[%emt 0:00:00]} Ba7 {[%emt 0:00:00]} 68. Rd7 {[%emt 0:00:00]} Bg1 {[%emt 0:00:00]} 69. Nd4 {[%emt 0:00:00]} Nf6 {[%emt 0:00:00]} 70. Rd6 {[%emt 0:00:00]} Kg7 {[%emt 0:00:00]} 71. a7 {[%emt 0:00:00]} Ne4 {[%emt 0:00:00]} 72. Rd7+ {[%emt 0:00:00]} Kg6 {[%emt 0:00:00]} 73. a8=Q {[%emt 0:00:00]} 1-0